fUST/lending_fUST_20260210
["ID","MTS","AMOUNT","RATE_DAILY","PERIOD"]
[404920526,1770683203107,946.75001853,0.00014368,2]
[404920527,1770683203141,1000.0,0.00013821,2]
[404920528,1770683207674,305.66219517,0.00013273,2]
[404920529,1770683208567,500.0,0.00013699,2]
[404920530,1770683208619,1000.0,0.00014247,2]
[404920531,1770683208675,214.61377282,0.00014795,2]
[404920532,1770683210916,500.0,0.00013273,2]
[404920535,1770683227097,-1002.32474856,0.00029991,2]
[404920545,1770683287818,950.62910425,0.000125,2]
[404920548,1770683345097,-339.71342584,0.00024953,2]
[404920551,1770683404371,500.0,0.00013699,2]
[404920552,1770683404408,500.85223757,0.00014247,2]
[404920553,1770683404790,190.76989047,0.00013273,2]
[404920554,1770683407474,500.0,0.00013273,2]
[404920555,1770683407547,1000.0,0.00013821,2]
[404920556,1770683407592,1587.64930692,0.00014368,2]
[404920557,1770683407741,500.0,0.00013273,2]
[404920558,1770683407798,879.88429686,0.00013821,2]
[404920559,1770683409119,500.0,0.00013699,2]
[404920560,1770683409180,1000.0,0.00014247,2]
[404920561,1770683409208,1003.65017484,0.00014795,2]
[404920562,1770683410779,500.0,0.00013273,2]
[404920563,1770683410848,1000.0,0.00013821,2]
[404920564,1770683410895,1500.0,0.00014368,2]
[404920565,1770683410951,581.50230822,0.00014916,2]
[404920566,1770683411818,500.0,0.00013273,2]
[404920592,1770683431575,-489.0,0.00024703,2]
[404920596,1770683431607,-973.0,0.00024703,2]
[404920603,1770683431668,-3320.76644445,0.00024703,2]
[404920717,1770683440791,-609.82875241,0.00024456,2]
[404920723,1770683445393,-2205.32737735,0.00024456,2]
[404920724,1770683445416,-1356.24667108,0.00024456,2]
[404920726,1770683445427,-828.59719916,0.00024456,2]
[404920728,1770683445437,-217.23355555,0.00024703,2]
[404920730,1770683445446,-4660.28657416,0.00024953,2]
[404920731,1770683445456,-101.88267113,0.00025999,2]
[404920734,1770683445876,-507.94608128,0.00025999,2]
[404920735,1770683445886,-2984.38112844,0.00026,10]
[404920739,1770683446755,-5440.00000153,0.00026,10]
[404920740,1770683446766,-1708.0070859,0.00026,10]
[404920741,1770683472099,448.42218987,0.00013699,2]
[404920742,1770683474408,150.0,0.00017808,2]
[404920743,1770683474459,250.0,0.00018356,2]
[404920744,1770683474514,400.0903073,0.00018904,2]
[404920746,1770683483103,500.0,0.00013699,2]
[404920747,1770683483163,500.77390481,0.00014247,2]
[404920748,1770683485784,500.0,0.00013699,2]
[404920749,1770683485860,556.85575586,0.00014247,2]
[404920750,1770683486795,500.0,0.00013699,2]
[404920751,1770683486829,500.62336117,0.00014247,2]
[404920752,1770683486890,500.0,0.00013273,2]
[404920753,1770683486955,1000.0,0.00013821,2]
[404920754,1770683487003,816.83827356,0.00014368,2]
[404920755,1770683487148,500.0,0.00013699,2]
[404920756,1770683487205,702.83775976,0.00014247,2]
[404920757,1770683489283,327.28,0.00013699,2]
[404920763,1770683544492,303.10001603,0.000189,2]
[404920764,1770683544525,454.65002405,0.00020034,4]
[404920765,1770683544554,303.10001603,0.00019278,2]
[404920766,1770683544583,454.65002403,0.00020412,4]
[404920767,1770683544611,303.10001603,0.00019656,2]
[404920768,1770683544654,303.10001603,0.00019467,2]
[404920769,1770683544720,303.10001603,0.00019089,2]
[404920770,1770683544767,454.65002405,0.00019845,4]
[404920771,1770683544835,454.65002405,0.00020223,4]
[404920774,1770683584547,-2424.80012823,0.00026,10]
[404920784,1770683703891,500.0,0.00013699,2]
[404920785,1770683703944,500.32522198,0.00014247,2]
[404920793,1770683794891,500.0,0.00013699,2]
[404920794,1770683794933,1500.0,0.00014795,2]
[404920795,1770683794981,1000.0,0.00014247,2]
[404920796,1770683795036,2000.0,0.00015342,2]
[404920797,1770683795092,2500.0,0.0001589,2]
[404920798,1770683796294,500.0,0.00013699,2]
[404920799,1770683796346,1076.39471481,0.00014247,2]
[404920800,1770683798150,500.0,0.00013699,2]
[404920801,1770683798205,1000.0,0.00014247,2]
[404920802,1770683798269,1500.0,0.00014795,2]
[404920803,1770683798316,2036.74622098,0.00015342,2]
[404920804,1770683800283,500.0,0.00013273,2]
[404920805,1770683804643,500.0,0.00013273,2]
[404920806,1770683808765,919.15523469,0.00014247,2]
[404920807,1770683808823,500.0,0.00013699,2]
[404920808,1770683810192,500.0,0.00013699,2]
[404920809,1770683810246,1027.96138248,0.00014247,2]
[404920810,1770683822354,500.0,0.00013699,2]
[404920811,1770683822403,568.16448388,0.00014247,2]
[404920813,1770683881109,2506.33223166,0.000235,2]
[404920815,1770683928901,303.10001603,0.000189,2]
[404920816,1770683928928,303.10001603,0.00019656,2]
[404920817,1770683928964,303.10001603,0.00019089,2]
[404920818,1770683928999,336.85528149,0.00020034,4]
[404920819,1770683929027,303.10001603,0.00019278,2]
[404920820,1770683929071,303.10001603,0.00019467,2]
[404920821,1770683929138,454.65002405,0.00019845,4]
[404920832,1770684020950,978.83511169,0.000235,2]
[404920833,1770684036147,5000.0,0.000235,2]
[404920834,1770684058497,5000.0,0.000235,2]
[404920836,1770684066094,1000.0,0.00013821,2]
[404920837,1770684066140,500.0,0.00013273,2]
[404920838,1770684070586,404.50815283,0.00013273,2]
[404920839,1770684080436,500.0,0.00013273,2]
[404920840,1770684080512,5000.0,0.000235,2]
[404920841,1770684086521,514.12636587,0.00013699,2]
[404920842,1770684087127,500.0,0.00013699,2]
[404920845,1770684102788,5000.0,0.000235,2]
[404920846,1770684124445,5000.0,0.000235,2]
[404920914,1770684146670,5000.0,0.000235,2]
[404920930,1770684168960,5000.0,0.000235,2]
[404920931,1770684190986,5000.0,0.000235,2]
[404920932,1770684213212,5000.0,0.000235,2]
[404920934,1770684235564,5000.0,0.000235,2]
[404920936,1770684258020,5000.0,0.000235,2]
[404920941,1770684280311,2087.74777279,0.000235,2]
[404920946,1770684307581,500.0,0.00013699,2]
[404920947,1770684307640,239.70521578,0.00014247,2]
[404920956,1770684383008,578.73828948,0.00013699,2]
[404920964,1770684445899,500.0,0.00013699,2]
[404920965,1770684445966,500.0,0.00014247,2]
[404920968,1770684453371,736.83878342,0.000235,2]
[404920990,1770684603179,578.73828948,0.00013699,2]
[404921018,1770684631688,-150.0,0.00023872,2]
[404921020,1770684631698,-2184.72941915,0.00024908,2]
[404921025,1770684631741,-1168.0,0.00024908,2]
[404921027,1770684631752,-903.13023113,0.00024908,2]
[404921029,1770684631761,-293.97538065,0.00025008,2]
[404921030,1770684631770,-177.0,0.00025872,2]
[404921032,1770684631779,-1000.0,0.00025877,30]
[404921034,1770684631788,-1200.0,0.00025997,2]
[404921036,1770684631797,-300.0,0.00025998,2]
[404921038,1770684631806,-300.0,0.00025998,2]
[404921040,1770684631815,-984.2521871,0.00025999,2]
[404921042,1770684631824,-500.0,0.00025999,2]
[404921043,1770684631834,-87.72266456,0.00026,10]
[404921045,1770684631879,-384.768375,0.00026,10]
[404921077,1770684637790,-305.95340307,0.00026,10]
[404921079,1770684637803,-5870.68511506,0.00026,10]
[404921080,1770684637813,-99.3997937,0.00026055,2]
[404921082,1770684637824,-310.40026493,0.00026055,2]
[404921083,1770684637842,-1822.38299121,0.00026055,2]
[404921118,1770684639940,-734.26882345,0.00026055,2]
[404921119,1770684639949,-718.304295,0.00026091,2]
[404921120,1770684639958,-200.0,0.00027397,2]
[404921121,1770684639967,-204.0,0.00027872,2]
[404921122,1770684639977,-500.0,0.00028136,2]
[404921123,1770684639985,-420.0,0.00028136,2]
[404921124,1770684639995,-421.0,0.0002826,2]
[404921125,1770684640004,-1752.10556878,0.00028904,2]
[404921366,1770684645859,-870.28130517,0.00028904,2]
[404921367,1770684645869,-300.46869483,0.00029209,2]
[404921368,1770684645987,-52.966287,0.00029209,2]
[404921369,1770684645997,-223.91117049,0.00029209,2]
[404921370,1770684646124,-276.08882951,0.00029209,2]
[404921371,1770684646133,-500.0,0.00029209,2]
[404921372,1770684646143,-500.0,0.00029209,2]
[404921373,1770684646152,-500.0,0.00029209,2]
[404921374,1770684646161,-500.0,0.00029209,2]
[404921375,1770684646171,-500.0,0.00029209,2]
[404921376,1770684646180,-311.37117049,0.00029209,2]
[404921381,1770684660615,150.0,0.00026158,120]
[404921382,1770684660855,150.0,0.0002896,120]
[404921390,1770684797685,303.10001603,0.000189,2]
[404921391,1770684797710,303.10001603,0.00019089,2]
[404921393,1770684797761,303.10001603,0.00019278,2]
[404921397,1770684797820,303.10001603,0.00019467,2]
[404921399,1770684797872,303.10001603,0.00019656,2]
[404921400,1770684801206,500.0,0.00028136,120]
[404921401,1770684839404,151.55000802,0.0002,2]
[404921402,1770684840311,5000.0,0.000235,2]
[404921405,1770684860603,150.38236857,0.00021918,2]
[404921417,1770684895478,303.10001603,0.000189,2]
[404921418,1770684895506,303.10001603,0.00019278,2]
[404921419,1770684895543,303.10001603,0.00019089,2]
[404921420,1770684895572,303.10001603,0.00019656,2]
[404921421,1770684895602,303.10001603,0.00019467,2]
[404921424,1770684970652,150.0,0.00021918,2]
[404921425,1770684970690,300.0,0.00022466,2]
[404921426,1770684970745,450.0,0.00023014,2]
[404921438,1770685062626,500.0,0.00028136,120]
[404921443,1770685339241,-600.0,0.00023562,2]
[404921444,1770685339271,-790.0,0.00023562,2]
[404921445,1770685339302,-155.15623375,0.00023651,2]
[404921446,1770685339332,-208.23669255,0.0002374,2]
[404921447,1770685339412,-487.49012185,0.0002411,2]
[404921454,1770685519561,500.0,0.00026471,120]
[404921455,1770685519893,332.93810199,0.00026471,120]
[404921456,1770685519987,208.23669255,0.00023462,2]
[404921464,1770685559352,500.0,0.00026471,120]
[404921465,1770685559572,500.0,0.00026471,120]
[404921466,1770685563839,277.7749349,0.00013699,2]
[404921472,1770685631680,150.0,0.00021918,2]
[404921473,1770685631726,300.0,0.00022466,2]
[404921474,1770685631775,450.0,0.00023014,2]
[404921478,1770685639088,-600.0,0.00023562,2]
[404921479,1770685639108,-594.68547843,0.00023868,2]
[404921486,1770685679630,5000.0,0.000235,2]
[404921489,1770685710483,500.0,0.00026471,120]
[404921494,1770685760106,-418.44286486,0.00023749,2]
[404921495,1770685760127,-155.15623375,0.00023989,2]
[404921496,1770685760146,-500.0,0.0002411,3]
[404921497,1770685760166,-594.52553021,0.0002411,2]
[404921498,1770685760186,-380.0,0.00024658,2]
[404921499,1770685760205,-300.0,0.00024772,2]
[404921500,1770685760225,-237.0,0.00024772,2]
[404921501,1770685760247,-500.0,0.00024773,2]
[404921502,1770685760266,-500.0,0.00024773,2]
[404921503,1770685760288,-188.62882951,0.00024773,2]
[404921504,1770685760310,-500.0,0.00024773,2]
[404921505,1770685760329,-500.0,0.00024773,2]
[404921506,1770685760348,-500.0,0.00024773,2]
[404921507,1770685760370,-500.0,0.00024773,2]
[404921508,1770685760391,-500.0,0.00024773,2]
[404921509,1770685760411,-500.0,0.00024773,2]
[404921510,1770685760435,-500.0,0.00024773,2]
[404921511,1770685760456,-500.0,0.00024773,2]
[404921512,1770685760477,-500.0,0.00024773,2]
[404921513,1770685760497,-500.0,0.00024773,2]
[404921514,1770685760518,-599.72507385,0.00024773,2]
[404921515,1770685760537,-500.0,0.00024773,2]
[404921516,1770685760557,-500.0,0.00024773,2]
[404921517,1770685760579,-255.55110966,0.00024773,2]
[404921518,1770685760598,-500.0,0.00024773,2]
[404921519,1770685760620,-500.0,0.00024773,2]
[404921520,1770685760642,-500.0,0.00024773,2]
[404921521,1770685760662,-500.0,0.00024773,2]
[404921522,1770685760684,-500.0,0.00024773,2]
[404921523,1770685760706,-500.0,0.00024773,2]
[404921524,1770685760727,-500.0,0.00024773,2]
[404921525,1770685760747,-406.40434749,0.00024773,2]
[404921526,1770685760766,-500.0,0.00024773,2]
[404921527,1770685760787,-500.0,0.00024773,2]
[404921528,1770685760806,-500.0,0.00024773,2]
[404921529,1770685760826,-500.0,0.00024773,2]
[404921530,1770685760846,-500.0,0.00024773,2]
[404921531,1770685760866,-109.22599067,0.00024773,2]
[404921575,1770685831908,-1192.18933296,0.00024674,2]
[404921581,1770685831964,-2239.7481403,0.00024674,2]
[404921583,1770685831974,-157.75310907,0.00024723,2]
[404921586,1770685831983,-300.0,0.00024772,2]
[404921588,1770685831993,-300.0,0.00024772,2]
[404921590,1770685832002,-300.0,0.00024772,2]
[404921594,1770685832012,-300.0,0.00024772,2]
[404921597,1770685832022,-1200.0,0.00024772,2]
[404921601,1770685832031,-814.0,0.00024772,2]
[404921605,1770685832042,-472.15342402,0.00024773,2]
[404921612,1770685832062,-500.0,0.00024773,2]
[404921615,1770685832072,-500.0,0.00024773,2]
[404921618,1770685832081,-239.17168289,0.00024773,2]
[404921631,1770685832230,-500.0,0.00024773,2]
[404921633,1770685832254,-500.0,0.00024773,2]
[404921635,1770685832274,-500.0,0.00024773,2]
[404921637,1770685832292,-500.0,0.00024773,2]
[404921639,1770685832305,-500.0,0.00024773,2]
[404921641,1770685832314,-500.0,0.00024773,2]
[404921643,1770685832326,-500.0,0.00024773,2]
[404921645,1770685832339,-500.0,0.00024773,2]
[404921647,1770685832349,-500.0,0.00024773,2]
[404921648,1770685832358,-500.0,0.00024773,2]
[404921650,1770685832370,-500.0,0.00024773,2]
[404921652,1770685832379,-285.49969385,0.00024773,2]
[404921654,1770685832391,-500.0,0.00024773,2]
[404921657,1770685832403,-500.0,0.00024773,2]
[404921659,1770685832413,-500.0,0.00024773,2]
[404921661,1770685832423,-500.0,0.00024773,2]
[404921663,1770685832432,-500.0,0.00024773,2]
[404921664,1770685832442,-500.0,0.00024773,2]
[404921666,1770685832451,-500.0,0.00024773,2]
[404921668,1770685832460,-305.80511955,0.00024773,2]
[404921671,1770685832471,-500.0,0.00024773,2]
[404921673,1770685832480,-500.0,0.00024773,2]
[404921674,1770685832489,-500.0,0.00024773,2]
[404921676,1770685832498,-500.0,0.00024773,2]
[404921678,1770685832510,-500.0,0.00024773,2]
[404921680,1770685832520,-500.0,0.00024773,2]
[404921683,1770685832530,-500.0,0.00024773,2]
[404921685,1770685832539,-500.0,0.00024773,2]
[404921686,1770685832548,-500.0,0.00024773,2]
[404921688,1770685832559,-500.0,0.00024773,2]
[404921691,1770685832569,-500.0,0.00024773,2]
[404921693,1770685832578,-500.0,0.00024773,2]
[404921694,1770685832587,-500.0,0.00024773,2]
[404921697,1770685832598,-500.0,0.00024773,2]
[404921698,1770685832607,-500.0,0.00024773,2]
[404921701,1770685832617,-500.0,0.00024773,2]
[404921702,1770685832625,-500.0,0.00024773,2]
[404921704,1770685832634,-500.0,0.00024773,2]
[404921706,1770685832644,-500.0,0.00024773,2]
[404921708,1770685832654,-500.0,0.00024773,2]
[404921710,1770685832663,-500.0,0.00024773,2]
[404921712,1770685832672,-500.0,0.00024773,2]
[404921714,1770685832682,-500.0,0.00024773,2]
[404921716,1770685832691,-500.0,0.00024773,2]
[404921718,1770685832700,-500.0,0.00024773,2]
[404921719,1770685832713,-629.73866978,0.00024773,2]
[404921720,1770685832722,-500.0,0.00024773,2]
[404921721,1770685832731,-500.0,0.00024773,2]
[404921722,1770685832740,-500.0,0.00024773,2]
[404921723,1770685832749,-500.0,0.00024773,2]
[404921724,1770685832760,-500.0,0.00024773,2]
[404921725,1770685832769,-500.0,0.00024773,2]
[404921726,1770685832778,-500.0,0.00024773,2]
[404921727,1770685832789,-500.0,0.00024773,2]
[404921728,1770685832798,-605.5087516,0.00024773,2]
[404921729,1770685832808,-6976.42637236,0.00024773,2]
[404921730,1770685832872,-6751.29355524,0.00024773,2]
[404921762,1770685846025,-1515.50008015,0.00024773,2]
[404921763,1770685846262,-7576.67837111,0.00024773,2]
[404921764,1770685846345,-132.74283094,0.00024773,2]
[404921776,1770685862889,500.0,0.00026471,120]
[404921777,1770685863138,500.0,0.00026471,120]
[404921778,1770685863379,500.0,0.00026471,120]
[404921779,1770685863611,500.0,0.00026472,120]
[404921780,1770685863851,413.468286,0.00026472,120]
[404921784,1770685900195,185.447907,0.00021936,2]
[404921786,1770685928098,479.93579163,0.00013699,2]
[404921787,1770685934170,389.3901587,0.00013273,2]
[404921790,1770685968799,5000.0,0.000235,2]
[404921798,1770685990539,500.0,0.00026471,120]
[404921801,1770686040792,361.7274484,0.000235,2]
[404921807,1770686104376,200.0,0.00013699,2]
[404921808,1770686107366,500.0,0.00013273,2]
[404921809,1770686107414,638.83428062,0.00013821,2]
[404921813,1770686169667,500.0,0.00013699,2]
[404921814,1770686173227,502.26914519,0.00013699,2]
[404921815,1770686176126,500.0,0.00013699,2]
[404921816,1770686176153,500.0,0.00013273,2]
[404921817,1770686176180,924.74318778,0.00013821,2]
[404921818,1770686176206,506.56547141,0.00014247,2]
[404921819,1770686179711,500.0,0.00013273,2]
[404921820,1770686179764,1000.0,0.00013821,2]
[404921821,1770686179826,407.82856512,0.00014368,2]
[404921822,1770686180053,500.73226313,0.00013699,2]
[404921823,1770686183004,500.0,0.00013699,2]
[404921826,1770686183677,302.80573112,0.00013673,2]
[404921827,1770686185313,502.44560844,0.00013273,2]
[404921829,1770686226935,500.98262723,0.00013273,2]
[404921830,1770686227049,500.50079033,0.00013273,2]
[404921831,1770686228226,501.63013071,0.00013699,2]
[404921832,1770686228853,500.0,0.00013273,2]
[404921833,1770686228900,1000.0,0.00013821,2]
[404921834,1770686228952,1500.0,0.00014368,2]
[404921835,1770686229008,1119.02743993,0.00014916,2]
[404921836,1770686229139,500.0,0.00013699,2]
[404921837,1770686229639,500.0,0.00013699,2]
[404921838,1770686229666,502.28732278,0.00013273,2]
[404921839,1770686235224,500.0,0.00013699,2]
[404921840,1770686257572,-171.2855485,0.00023816,2]
[404921841,1770686257597,-300.0,0.00023871,2]
[404921842,1770686257621,-9528.7144515,0.00023872,2]
[404921843,1770686264607,-154.59804689,0.00023972,2]
[404921844,1770686264633,-1200.0,0.00024228,2]
[404921845,1770686264656,-8645.40195311,0.00024229,2]
[404921846,1770686269768,-385.64057699,0.00024229,2]
[404921847,1770686269894,-300.0,0.00024425,2]
[404921848,1770686269920,-300.0,0.00024425,2]
[404921849,1770686269943,-300.0,0.00024425,2]
[404921850,1770686269968,-500.0,0.00024771,2]
[404921851,1770686269994,-500.0,0.00024771,2]
[404921852,1770686270018,-500.0,0.00024771,2]
[404921853,1770686270044,-475.0816791,0.00024771,2]
[404921854,1770686270068,-500.0,0.00024771,2]
[404921855,1770686270093,-500.0,0.00024771,2]
[404921856,1770686270115,-301.51657384,0.00024771,2]
[404921857,1770686270139,-500.0,0.00024771,2]
[404921858,1770686270162,-156.26714972,0.00024771,2]
[404921859,1770686270186,-500.0,0.00024771,2]
[404921860,1770686270210,-500.0,0.00024771,2]
[404921861,1770686270234,-500.0,0.00024771,2]
[404921862,1770686270259,-500.0,0.00024771,2]
[404921863,1770686270283,-500.0,0.00024771,2]
[404921864,1770686270305,-560.05068484,0.00024771,2]
[404921865,1770686270329,-500.0,0.00024771,2]
[404921866,1770686270353,-500.0,0.00024771,2]
[404921868,1770686270376,-500.0,0.00024771,2]
[404921870,1770686270400,-221.44333551,0.00024771,2]
[404921900,1770686275713,-278.55666449,0.00024771,2]
[404921901,1770686275736,-500.0,0.00024771,2]
[404921902,1770686275759,-341.89623337,0.00024771,2]
[404921903,1770686275783,-500.0,0.00024771,2]
[404921904,1770686275807,-500.0,0.00024771,2]
[404921905,1770686275830,-500.0,0.00024771,2]
[404921906,1770686275857,-500.0,0.00024771,2]
[404921907,1770686275882,-500.0,0.00024771,2]
[404921908,1770686275907,-500.0,0.00024771,2]
[404921909,1770686275932,-500.0,0.00024771,2]
[404921910,1770686275956,-500.0,0.00024771,2]
[404921911,1770686275980,-500.0,0.00024771,2]
[404921912,1770686276005,-500.0,0.00024771,2]
[404921913,1770686276033,-500.0,0.00024771,2]
[404921914,1770686276058,-278.83142175,0.00024771,2]
[404921915,1770686276086,-500.0,0.00024771,2]
[404921916,1770686276121,-474.3352784,0.00024771,2]
[404921917,1770686276145,-500.0,0.00024771,2]
[404921918,1770686276170,-500.0,0.00024771,2]
[404921920,1770686276194,-500.0,0.00024771,2]
[404921921,1770686276218,-500.0,0.00024771,2]
[404921922,1770686276241,-126.38040199,0.00024771,2]
[404921955,1770686281031,-1506.08853889,0.00024671,2]
[404921956,1770686281057,-373.61959801,0.00024771,2]
[404921957,1770686281082,-500.0,0.00024771,2]
[404921958,1770686281111,-500.0,0.00024771,2]
[404921959,1770686281136,-500.0,0.00024771,2]
[404921960,1770686281159,-500.0,0.00024771,2]
[404921961,1770686281183,-597.08753799,0.00024771,2]
[404921962,1770686281206,-500.0,0.00024771,2]
[404921963,1770686281230,-500.0,0.00024771,2]
[404921964,1770686281255,-500.0,0.00024771,2]
[404921965,1770686281279,-500.0,0.00024771,2]
[404921966,1770686281302,-500.0,0.00024771,2]
[404921967,1770686281325,-500.0,0.00024771,2]
[404921968,1770686281349,-500.0,0.00024771,2]
[404921969,1770686281373,-500.0,0.00024771,2]
[404921970,1770686281395,-500.0,0.00024771,2]
[404921971,1770686281418,-500.0,0.00024771,2]
[404921972,1770686281441,-500.0,0.00024771,2]
[404921973,1770686281464,-23.20432511,0.00024771,2]
[404921974,1770686283138,500.0,0.00013273,2]
[404921975,1770686286385,500.0,0.00013273,2]
[404921976,1770686286440,1000.0,0.00013821,2]
[404921977,1770686286499,1321.21210442,0.00014368,2]
[404921978,1770686287088,-150.0,0.00024658,2]
[404921979,1770686287112,-300.0,0.0002477,2]
[404921980,1770686287138,-476.79567489,0.00024771,2]
[404921981,1770686287161,-500.0,0.00024771,2]
[404921982,1770686287187,-500.0,0.00024771,2]
[404921983,1770686287214,-500.0,0.00024771,2]
[404921984,1770686287239,-500.0,0.00024771,2]
[404921985,1770686287262,-500.0,0.00024771,2]
[404921986,1770686287286,-500.0,0.00024771,2]
[404921987,1770686287310,-500.0,0.00024771,2]
[404921988,1770686287334,-151.0,0.00024772,2]
[404921989,1770686287357,-213.922536,0.00024772,2]
[404921990,1770686287380,-5208.28178911,0.00024772,2]
[404921991,1770686289034,500.0,0.00013699,2]
[404921992,1770686289090,273.50012722,0.00014247,2]
[404921993,1770686289439,500.0,0.00013699,2]
[404921995,1770686294711,327.14678323,0.00013273,2]
[404921996,1770686295717,503.18096716,0.00013273,2]
[404921998,1770686298871,500.0,0.00013273,2]
[404921999,1770686298919,1000.0,0.00013821,2]
[404922000,1770686298980,1500.0,0.00014368,2]
[404922001,1770686299033,195.65704464,0.00014916,2]
[404922002,1770686300848,500.0,0.00013699,2]
[404922003,1770686302751,500.0,0.00013699,2]
[404922004,1770686303107,500.0,0.00013699,2]
[404922005,1770686303156,1000.0,0.00014247,2]
[404922006,1770686303193,1000.0,0.00014795,2]
[404922007,1770686343556,500.0,0.00013273,2]
[404922008,1770686343606,1079.86275782,0.00013821,2]
[404922009,1770686346324,485.91457631,0.00013699,2]
[404922010,1770686346373,500.0,0.00013273,2]
[404922011,1770686346406,857.18421925,0.00013821,2]
[404922012,1770686347313,500.0,0.00013699,2]
[404922013,1770686347365,511.4313208,0.00014247,2]
[404922014,1770686349231,500.0,0.00013699,2]
[404922015,1770686407523,500.0,0.00013273,2]
[404922016,1770686407582,581.59493724,0.00013821,2]
[404922017,1770686407716,501.17154116,0.00013699,2]
[404922018,1770686411425,500.20077682,0.00013699,2]
[404922019,1770686426250,500.40621732,0.00013273,2]
[404922021,1770686463723,500.0,0.00013273,2]
[404922022,1770686463763,504.02096121,0.00013821,2]
[404922023,1770686465368,500.0,0.00013273,2]
[404922028,1770686523343,500.0,0.00013699,2]
[404922029,1770686523383,964.22668993,0.00014247,2]
[404922030,1770686526347,1029.99711063,0.00013821,2]
[404922031,1770686527152,500.0,0.00013273,2]
[404922032,1770686559500,-172.38004665,0.00023632,2]
[404922033,1770686559522,-177.250344,0.00023772,2]
[404922034,1770686559545,-24965.3708496,0.00023774,2]
[404922035,1770686559567,-2906.6,0.00024765,10]
[404922036,1770686559589,-2422.17,0.00024765,10]
[404922037,1770686559620,-500.0,0.00024771,2]
[404922038,1770686559644,-500.0,0.00024771,2]
[404922039,1770686559665,-193.72786385,0.00024771,2]
[404922040,1770686559687,-326.89948021,0.00024771,2]
[404922041,1770686559709,-500.0,0.00024771,2]
[404922042,1770686559732,-500.0,0.00024771,2]
[404922043,1770686559753,-463.34544064,0.00024771,2]
[404922044,1770686559777,-500.0,0.00024771,2]
[404922045,1770686559800,-500.0,0.00024771,2]
[404922046,1770686559823,-500.0,0.00024771,2]
[404922047,1770686559846,-500.0,0.00024771,2]
[404922048,1770686559869,-500.0,0.00024771,2]
[404922049,1770686559894,-500.0,0.00024771,2]
[404922050,1770686559918,-169.85976607,0.00024771,2]
[404922051,1770686559943,-500.0,0.00024771,2]
[404922052,1770686559967,-500.0,0.00024771,2]
[404922053,1770686559989,-500.0,0.00024771,2]
[404922054,1770686560012,-500.0,0.00024771,2]
[404922055,1770686560035,-500.0,0.00024771,2]
[404922056,1770686560058,-500.0,0.00024771,2]
[404922057,1770686560080,-500.0,0.00024771,2]
[404922058,1770686560103,-500.0,0.00024771,2]
[404922059,1770686560124,-500.0,0.00024771,2]
[404922060,1770686560147,-500.0,0.00024771,2]
[404922061,1770686560172,-500.0,0.00024771,2]
[404922062,1770686560194,-500.0,0.00024771,2]
[404922063,1770686560216,-500.0,0.00024771,2]
[404922064,1770686560239,-500.0,0.00024771,2]